bitfinex/quotes_BTCUSD_20220304
["timestamp","ask_amount","ask_price","bid_price","bid_amount"]
[1646387649032,0.002,41659.0,41655.0,0.12246472]
[1646387649231,0.2344647,41663.0,41658.0,0.27148738]
[1646387649431,0.2344647,41663.0,41655.0,0.12053193]
[1646387649635,0.19760737,41666.0,41656.0,0.411958]
[1646387649834,0.19760737,41666.0,41662.0,0.060039]
[1646387650031,0.19760737,41667.0,41662.0,0.02283655]
[1646387650230,0.19760737,41667.0,41660.0,0.05]
[1646387650833,0.28744814,41661.0,41660.0,0.05]
[1646387651032,0.19760737,41667.0,41660.0,0.161941]
[1646387651232,0.29078715,41668.0,41660.0,0.05]
[1646387651432,0.19760737,41667.0,41662.0,0.060038]
[1646387651637,0.28778715,41668.0,41662.0,0.060038]
[1646387652078,0.25929025,41663.0,41662.0,0.060038]
[1646387652283,0.05,41663.0,41662.0,0.060038]
[1646387652478,0.24760737,41667.0,41662.0,0.060038]
[1646387653080,0.24760737,41667.0,41660.0,0.05]
[1646387653580,0.24760737,41667.0,41659.0,0.120077]
[1646387653581,0.05,41661.0,41659.0,0.120077]
[1646387653784,0.28220922,41667.0,41655.0,0.05]
[1646387653785,0.19760737,41665.0,41655.0,0.05]
[1646387653981,0.05,41660.0,41652.0,0.01478161]
[1646387654181,0.05,41660.0,41652.0,0.06478161]
[1646387654381,0.18440795,41657.0,41652.0,0.06478161]
[1646387654581,0.26003142,41657.0,41652.0,0.30465955]
[1646387654781,0.33449335,41657.0,41649.0,0.03225815]
[1646387654983,0.33449335,41657.0,41648.0,0.111992]
[1646387655281,0.33449335,41657.0,41648.0,0.12206416]
[1646387655282,0.26003142,41657.0,41648.0,0.12206416]
[1646387655481,0.26003142,41657.0,41648.0,0.01007216]
[1646387655936,0.42109257,41657.0,41650.0,0.111985]
[1646387656136,0.42109257,41657.0,41648.0,0.01007216]
[1646387656336,0.42109257,41657.0,41651.0,0.060057]
[1646387657236,0.05,41656.0,41651.0,0.060057]
[1646387657438,0.045,41656.0,41651.0,0.060057]
[1646387657639,0.365665,41655.0,41647.0,0.18013]
[1646387657837,0.045,41656.0,41647.0,0.18013]
[1646387658138,0.045,41656.0,41647.0,0.18113]
[1646387658544,0.81491636,41655.0,41647.0,0.001]
[1646387658739,0.19760737,41653.0,41647.0,0.001]
[1646387659037,0.25,41654.0,41647.0,0.001]
[1646387659038,0.91127237,41652.0,41647.0,0.001]
[1646387659238,0.365665,41650.0,41647.0,0.001]
[1646387659437,0.365665,41650.0,41640.0,0.21975155]
[1646387659438,0.15518206,41644.0,41640.0,0.21975155]
[1646387659685,0.415665,41643.0,41640.0,0.21975155]
[1646387660686,0.60243197,41641.0,41640.0,0.21975155]
[1646387661284,0.05,41642.0,41640.0,0.21975155]
[1646387661486,0.3,41649.0,41640.0,0.21975155]
[1646387661683,0.365665,41648.0,41640.0,0.21975155]
[1646387662084,0.58009027,41648.0,41640.0,0.21975155]
[1646387662285,0.35,41649.0,41643.0,0.26212065]
[1646387662486,0.05,41649.0,41643.0,0.01236567]
[1646387662684,0.025,41652.0,41643.0,0.01025418]
[1646387662884,0.075,41652.0,41643.0,0.01025418]
[1646387663085,0.025,41652.0,41642.0,0.120119]
[1646387663331,0.17454638,41651.0,41642.0,0.120119]
[1646387663836,0.05,41651.0,41643.0,0.0143217]
[1646387664033,0.30214276,41652.0,41643.0,0.0143217]
[1646387664237,0.075,41652.0,41647.0,0.26729609]
[1646387664735,0.43623867,41654.0,41647.0,0.26729609]
[1646387664935,0.24760737,41654.0,41647.0,0.26729609]
[1646387665336,0.05,41654.0,41647.0,0.26729609]
[1646387665737,0.54760737,41655.0,41647.0,0.26729609]
[1646387666339,0.19760737,41654.0,41647.0,0.26729609]
[1646387667184,0.37955584,41653.0,41647.0,0.26729609]
[1646387667387,0.19760737,41654.0,41647.0,0.26729609]
[1646387667586,0.05,41655.0,41647.0,0.26729609]
[1646387667785,0.24760737,41656.0,41647.0,0.31729609]
[1646387668284,0.71719734,41656.0,41647.0,0.31729609]
[1646387669284,0.51958997,41656.0,41647.0,0.31729609]
[1646387669483,0.05,41656.0,41647.0,0.3332833]
[1646387669684,0.05,41656.0,41648.0,0.12439162]
[1646387669884,0.05,41656.0,41650.0,0.01575172]
[1646387670285,0.28384996,41658.0,41650.0,0.01575172]
[1646387670484,0.17889857,41657.0,41650.0,0.01575172]
[1646387670830,0.56132237,41658.0,41650.0,0.01575172]
[1646387671034,0.23384996,41658.0,41650.0,0.01575172]
[1646387671635,0.05,41658.0,41650.0,0.01575172]
[1646387671830,0.18485737,41661.0,41651.0,0.2477004]
[1646387672031,0.24700921,41662.0,41656.0,0.22373547]
[1646387672230,0.365665,41661.0,41656.0,0.22373547]
[1646387672830,0.365665,41661.0,41652.0,0.3]
[1646387673031,0.49994104,41662.0,41652.0,0.3]
[1646387673731,0.49994104,41662.0,41652.0,0.31047223]
[1646387673932,0.49994104,41662.0,41654.0,0.01104478]
[1646387674787,0.25293183,41662.0,41654.0,0.01104478]
[1646387675590,0.27798839,41657.0,41654.0,0.01104478]
[1646387675888,0.05,41656.0,41652.0,0.05]
[1646387676289,0.05,41656.0,41649.0,0.05]
[1646387676490,0.26309177,41654.0,41650.0,0.01178887]
[1646387676694,0.365665,41653.0,41644.0,0.27003028]
[1646387676889,0.31309177,41654.0,41644.0,0.01584543]
[1646387676890,0.365665,41652.0,41644.0,0.01584543]
[1646387677090,0.05,41652.0,41644.0,0.01030546]
[1646387677290,0.31309177,41654.0,41640.0,0.31068706]
[1646387677490,0.16781122,41647.0,41640.0,0.01068706]
[1646387677691,0.665665,41653.0,41644.0,0.19716804]
[1646387677692,0.365665,41652.0,41644.0,0.19716804]
[1646387677890,0.24347503,41646.0,41644.0,0.19716804]
[1646387678091,0.365665,41652.0,41644.0,0.19716804]
[1646387678536,0.18171385,41648.0,41644.0,0.19716804]
[1646387679133,0.24209653,41649.0,41644.0,0.19716804]
[1646387679337,0.29209653,41649.0,41644.0,0.19716804]
[1646387679534,0.05,41649.0,41644.0,0.19716804]
[1646387679733,0.48087932,41654.0,41644.0,0.25722804]
[1646387679933,0.32200921,41654.0,41644.0,0.25722804]
[1646387680134,0.27161194,41654.0,41644.0,0.25722804]
[1646387680334,0.37161194,41654.0,41644.0,0.25722804]
[1646387680536,0.29445782,41654.0,41646.0,0.25318361]
[1646387680737,0.29445782,41654.0,41647.0,0.3]
[1646387680738,0.075,41654.0,41647.0,0.3]
[1646387680937,0.075,41654.0,41648.0,0.01411207]
[1646387681136,0.025,41654.0,41648.0,0.120106]
[1646387683185,0.35664494,41657.0,41651.0,0.111983]
[1646387683383,0.19778594,41659.0,41652.0,0.31191565]
[1646387683585,0.19778594,41659.0,41652.0,0.36191565]
[1646387683783,0.23465615,41660.0,41654.0,0.01127956]
[1646387683983,0.23465615,41660.0,41652.0,0.41004684]
[1646387683984,0.19778594,41660.0,41652.0,0.41004684]
[1646387684185,0.09417638,41657.0,41652.0,0.07498716]
[1646387684385,0.86345094,41656.0,41642.0,0.120121]
[1646387684687,0.56345094,41655.0,41643.0,0.01585326]
[1646387684882,0.56345094,41655.0,41643.0,0.01058569]
[1646387685084,0.16178505,41649.0,41643.0,0.01058569]
[1646387685284,0.16178505,41649.0,41642.0,0.1827397]
[1646387685483,0.365665,41648.0,41645.0,0.16337793]
[1646387685685,0.21178505,41649.0,41645.0,0.16337793]
[1646387685935,0.54778594,41652.0,41645.0,0.16337793]
[1646387686133,0.365665,41651.0,41645.0,0.16337793]
[1646387686333,0.20330572,41650.0,41645.0,0.16337793]
[1646387686534,0.05,41650.0,41645.0,0.16337793]
[1646387686735,0.24978594,41652.0,41645.0,0.16337793]
[1646387686934,0.17621997,41651.0,41645.0,0.16337793]
[1646387687338,0.665665,41650.0,41642.0,0.120121]
[1646387687535,0.665665,41650.0,41638.0,0.01585011]
[1646387687536,0.365665,41648.0,41638.0,0.01585011]
[1646387687734,0.365665,41646.0,41638.0,0.01585011]
[1646387688134,0.22408282,41641.0,41638.0,0.01585011]
[1646387688335,0.365665,41640.0,41639.0,0.2130527]
[1646387689136,0.05,41641.0,41639.0,0.2130527]
[1646387689337,0.4,41647.0,41639.0,0.2130527]
[1646387689587,0.365665,41646.0,41639.0,0.2130527]
[1646387689988,0.365665,41642.0,41639.0,0.2130527]
[1646387690186,0.415665,41642.0,41639.0,0.2130527]
[1646387690486,0.365665,41641.0,41639.0,0.2130527]
[1646387690687,0.4,41647.0,41639.0,0.2130527]
[1646387690886,0.365665,41646.0,41639.0,0.2130527]
[1646387691688,0.29412619,41644.0,41639.0,0.2130527]
[1646387691887,0.365665,41643.0,41639.0,0.2130527]
[1646387692890,0.05389924,41642.0,41638.0,0.01585011]
[1646387693092,1.205853,41641.0,41628.0,0.0031]
[1646387693346,0.365665,41639.0,41628.0,0.0031]
[1646387693540,0.365665,41637.0,41628.0,0.0031]
[1646387693742,0.365665,41635.0,41628.0,0.0031]
[1646387693943,0.33360797,41634.0,41631.0,0.18651645]
[1646387694140,0.060103,41632.0,41628.0,0.0031]
[1646387694442,0.365665,41631.0,41628.0,0.0031]
[1646387694641,0.415665,41631.0,41628.0,0.0031]
[1646387694841,0.465665,41630.0,41628.0,0.0031]
[1646387697586,0.465665,41630.0,41628.0,0.0011]
[1646387697784,0.5197796,41629.0,41628.0,0.0011]
[1646387698184,0.6197796,41629.0,41628.0,0.0011]
[1646387699385,0.563665,41629.0,41628.0,0.0011]
[1646387700386,0.463665,41629.0,41628.0,0.0011]
[1646387700587,0.42881797,41634.0,41628.0,0.0011]
[1646387700588,0.025,41634.0,41628.0,0.0011]
[1646387700845,0.04111141,41635.0,41628.0,0.01415504]
[1646387701245,0.365665,41633.0,41628.0,0.01415504]
[1646387701447,0.04111141,41635.0,41630.0,0.28068107]
[1646387701649,0.04111141,41635.0,41631.0,0.01311469]
[1646387701846,0.005,41635.0,41628.0,0.061188]
[1646387702047,0.025,41639.0,41628.0,0.07263417]
[1646387702246,0.003,41636.0,41628.0,0.07263417]
[1646387702648,0.2824358,41633.0,41628.0,0.07041666]
[1646387702846,0.003,41636.0,41628.0,0.07041666]
[1646387703047,0.003,41636.0,41628.0,0.12041666]
[1646387703446,0.003,41636.0,41628.0,0.10897049]
[1646387703747,0.110091,41638.0,41628.0,0.05897049]
[1646387703946,0.365665,41637.0,41628.0,0.10897049]
[1646387704148,0.20626415,41632.0,41628.0,0.05897049]
[1646387704346,0.25626415,41632.0,41628.0,0.05897049]
[1646387704797,0.05,41632.0,41628.0,0.05897049]
[1646387704994,0.0006,41635.0,41628.0,0.05897049]
[1646387705200,0.365665,41634.0,41628.0,0.0011]
[1646387705395,0.440665,41634.0,41628.0,0.0011]
[1646387705796,0.21499382,41630.0,41628.0,0.0011]
[1646387705996,0.365665,41629.0,41628.0,0.0011]
[1646387706195,0.415665,41629.0,41628.0,0.0011]
[1646387706398,0.475773,41629.0,41628.0,0.0011]
[1646387707395,0.70588425,41629.0,41628.0,0.0011]
[1646387708434,0.70588425,41629.0,41628.0,0.00045041]
[1646387708837,1.4,41628.0,41627.0,0.00042911]
[1646387709036,1.865665,41628.0,41627.0,0.00042911]
[1646387709239,1.865665,41628.0,41620.0,0.0011]
[1646387709240,1.35,41627.0,41620.0,0.0011]
[1646387709437,0.425778,41625.0,41621.0,0.0131]
[1646387709840,0.57573082,41623.0,41621.0,0.0131]
[1646387710038,0.68584982,41623.0,41621.0,0.0131]
[1646387710440,0.98584982,41623.0,41621.0,0.0131]
[1646387711742,0.98584982,41623.0,41621.0,0.0101]
[1646387711743,0.765665,41622.0,41621.0,0.0101]
[1646387711939,1.06174588,41622.0,41621.0,0.0101]
[1646387712779,1.79384588,41622.0,41621.0,0.0101]
[1646387712985,0.86248565,41618.0,41615.0,0.0011]
[1646387713181,1.397765,41617.0,41615.0,0.0011]
[1646387713382,1.497765,41617.0,41615.0,0.0011]
[1646387713583,1.497765,41617.0,41614.0,0.0001]
[1646387713584,2.1321,41616.0,41614.0,0.0001]
[1646387713783,1.497765,41615.0,41614.0,0.0001]
[1646387714985,1.497765,41615.0,41611.0,0.00176846]
[1646387714986,0.365665,41613.0,41611.0,0.00176846]
[1646387715186,0.3,41612.0,41611.0,0.00176846]
[1646387715386,0.365665,41612.0,41611.0,0.00176846]
[1646387715591,0.05,41614.0,41611.0,0.00176846]
[1646387715838,0.148,41619.0,41611.0,0.00176846]
[1646387715839,0.048,41619.0,41611.0,0.00176846]
[1646387716040,0.365665,41622.0,41611.0,0.00176846]
[1646387716339,0.002,41618.0,41611.0,0.00176846]
[1646387716540,0.002,41618.0,41614.0,0.060108]
[1646387718145,0.002,41618.0,41612.0,0.120216]
[1646387718840,0.30713792,41621.0,41612.0,0.32476727]
[1646387719041,0.05,41621.0,41612.0,0.32476727]
[1646387719240,0.025,41622.0,41612.0,0.33599669]
[1646387719687,0.05,41626.0,41612.0,0.32476727]
[1646387719889,0.05,41626.0,41614.0,0.20324312]
[1646387720092,0.1996,41630.0,41622.0,0.0601]
[1646387720388,0.365665,41629.0,41622.0,0.0601]
[1646387721187,0.415665,41629.0,41622.0,0.0601]
[1646387721588,0.22081637,41625.0,41622.0,0.0601]
[1646387721989,0.365665,41623.0,41622.0,0.07289943]
[1646387722288,0.05,41625.0,41622.0,0.07289943]
[1646387722488,0.003,41626.0,41622.0,0.07289943]
[1646387722689,0.003,41626.0,41623.0,0.184258]
[1646387723089,0.003,41626.0,41624.0,0.01329207]
[1646387723343,0.003,41626.0,41625.0,0.26566709]
[1646387723742,0.365665,41633.0,41627.0,0.060098]
[1646387723943,0.365665,41633.0,41627.0,0.07514495]
[1646387724743,0.25482127,41629.0,41627.0,0.05545676]
[1646387724943,0.365665,41628.0,41627.0,0.05545676]
[1646387726947,0.05,41629.0,41627.0,0.05545676]
[1646387727200,0.365665,41628.0,41627.0,0.05545676]
[1646387727603,0.365665,41628.0,41623.0,0.05]
[1646387727798,0.365665,41628.0,41621.0,0.05]
[1646387727799,0.05,41628.0,41621.0,0.05]
[1646387728199,0.14414,41629.0,41621.0,0.05]
[1646387728399,0.14414,41629.0,41622.0,0.002]
[1646387729699,0.14414,41629.0,41621.0,0.05]
[1646387729901,0.14414,41629.0,41619.0,0.01298822]
[1646387730101,0.665665,41628.0,41619.0,0.01298822]
[1646387730303,0.665665,41628.0,41618.0,0.20440389]
[1646387730304,0.365665,41627.0,41618.0,0.20440389]
[1646387730502,0.060115,41626.0,41617.0,0.003]
[1646387730705,0.665665,41625.0,41617.0,0.003]
[1646387730943,0.7321,41624.0,41617.0,0.003]
[1646387731146,1.37909452,41623.0,41617.0,0.003]
[1646387731345,0.4,41622.0,41617.0,0.003]
[1646387731543,0.18452418,41620.0,41617.0,0.003]
[1646387731739,0.120254,41618.0,41612.0,0.21091125]
[1646387731939,0.365665,41617.0,41612.0,0.21091125]
[1646387732139,0.3,41616.0,41612.0,0.21091125]
[1646387732338,0.25625827,41614.0,41612.0,0.21091125]
[1646387732541,0.365665,41613.0,41612.0,0.21091125]
[1646387734987,0.365665,41613.0,41611.0,0.00176846]
[1646387734988,0.63938166,41613.0,41611.0,0.00176846]
[1646387736191,0.3,41612.0,41611.0,0.00176846]
[1646387736388,0.665665,41612.0,41611.0,0.00176846]
[1646387740136,0.765665,41612.0,41611.0,0.00176846]
[1646387743387,0.465665,41612.0,41611.0,0.00176846]
[1646387743686,0.765665,41612.0,41611.0,0.00176846]
[1646387744688,0.365665,41610.0,41609.0,0.0031]
[1646387744889,0.365665,41610.0,41603.0,0.00563199]
[1646387744890,0.95,41609.0,41603.0,0.00563199]
[1646387745090,0.365665,41608.0,41603.0,0.00563199]
[1646387745491,0.415665,41608.0,41603.0,0.00563199]
[1646387745690,0.365665,41606.0,41603.0,0.00563199]
[1646387745933,0.415665,41606.0,41603.0,0.00563199]
[1646387746936,0.05,41606.0,41603.0,0.00563199]
[1646387747138,0.028,41609.0,41603.0,0.02141634]
[1646387747336,0.028,41609.0,41604.0,0.01301006]
[1646387747337,0.003,41609.0,41604.0,0.01301006]
[1646387747534,0.003,41609.0,41603.0,0.00563199]
[1646387747734,0.03527545,41614.0,41603.0,0.00563199]
[1646387747934,0.03527545,41614.0,41609.0,0.18897006]
[1646387748335,0.03527545,41614.0,41610.0,0.01285387]
[1646387748935,0.03527545,41614.0,41611.0,0.18027672]
[1646387749135,0.03527545,41614.0,41611.0,0.01453017]
[1646387749338,0.365665,41613.0,41610.0,0.07289155]
[1646387749600,0.1,41618.0,41609.0,0.18897006]
[1646387749601,0.3,41618.0,41609.0,0.18897006]
[1646387749798,0.025,41621.0,41610.0,0.2]
[1646387749799,0.25,41617.0,41610.0,0.2]
[1646387750396,0.025,41621.0,41616.0,0.17149561]
[1646387750597,0.025,41621.0,41617.0,0.3]
[1646387750998,0.25,41621.0,41617.0,0.3]
[1646387751299,0.365665,41620.0,41616.0,0.17149561]
[1646387751702,0.25,41621.0,41616.0,0.17149561]
[1646387751902,0.365665,41620.0,41616.0,0.17149561]
[1646387752097,0.25,41621.0,41616.0,0.17149561]
[1646387753438,0.25,41624.0,41616.0,0.17149561]
[1646387753839,0.28534224,41626.0,41618.0,0.2]
[1646387754039,0.025,41628.0,41619.0,0.3]
[1646387754238,0.59302594,41629.0,41619.0,0.32408]
[1646387754239,0.39524,41629.0,41619.0,0.32408]
[1646387754443,0.39524,41629.0,41620.0,0.048]
[1646387754839,0.25,41626.0,41620.0,0.048]
[1646387755040,0.46263173,41626.0,41620.0,0.048]
[1646387755243,0.25,41626.0,41620.0,0.048]
[1646387755840,0.20868113,41625.0,41620.0,0.048]
[1646387756040,0.20868113,41625.0,41616.0,0.5]
[1646387756240,0.25,41626.0,41616.0,0.5]
[1646387756642,0.3170251,41626.0,41616.0,0.5]
[1646387756842,0.23681009,41622.0,41616.0,0.5]
[1646387757087,0.3170251,41626.0,41615.0,0.3]
[1646387757088,0.25,41626.0,41615.0,0.3]
[1646387757285,0.1671806,41625.0,41615.0,0.3]
[1646387758086,0.24705531,41623.0,41615.0,0.3]
[1646387758686,0.19477474,41624.0,41615.0,0.3]
[1646387758886,0.1571806,41625.0,41615.0,0.3]
[1646387759287,0.25,41626.0,41615.0,0.3]
[1646387759888,0.25,41626.0,41618.0,0.20812645]
[1646387761049,0.46385245,41626.0,41618.0,0.20812645]
[1646387761250,0.46385245,41626.0,41614.0,0.41879235]
[1646387761652,0.17172636,41625.0,41614.0,0.41879235]
[1646387762450,0.17172636,41625.0,41616.0,0.27460278]
[1646387762649,0.17172636,41625.0,41614.0,0.37079235]
[1646387763749,0.25,41624.0,41617.0,0.21744865]
[1646387763950,0.365665,41623.0,41614.0,0.18466204]
[1646387764149,0.52172636,41625.0,41611.0,0.167756]
[1646387764150,0.25,41621.0,41611.0,0.119756]
[1646387764350,0.25,41621.0,41611.0,0.095676]
[1646387764594,0.25,41616.0,41611.0,0.095676]
[1646387764795,0.365665,41615.0,41611.0,0.095676]
[1646387764993,0.21757547,41613.0,41611.0,0.095676]
[1646387765294,0.365665,41612.0,41611.0,0.095676]
[1646387766194,0.665665,41612.0,41611.0,0.095676]
[1646387766795,0.715665,41612.0,41611.0,0.095676]
[1646387766994,0.715665,41612.0,41605.0,0.001]
[1646387766995,1.4,41611.0,41605.0,0.001]
[1646387767196,0.25,41608.0,41605.0,0.001]
[1646387767396,0.365665,41607.0,41605.0,0.001]
[1646387767794,0.65214923,41607.0,41605.0,0.001]
[1646387769842,1.4,41606.0,41602.0,0.0011]
[1646387770146,0.25,41604.0,41602.0,0.0011]
[1646387770341,0.715665,41603.0,41602.0,0.0011]
[1646387770743,0.99166558,41603.0,41602.0,0.0011]
[1646387771844,0.25,41600.0,41596.0,0.0021]
[1646387772089,0.25,41597.0,41596.0,0.0021]
[1646387772288,0.915665,41597.0,41596.0,0.0021]
[1646387772692,1.065665,41597.0,41596.0,0.0021]
[1646387772889,0.765665,41597.0,41596.0,0.0021]
[1646387774190,0.515665,41597.0,41596.0,0.0021]
[1646387774591,0.365665,41597.0,41596.0,0.0021]
[1646387774991,0.365665,41597.0,41596.0,0.00090747]
[1646387776442,0.004,41598.0,41596.0,0.00090747]
[1646387776942,0.025,41601.0,41596.0,0.00090747]
[1646387777143,0.25,41604.0,41596.0,0.00090747]
[1646387777643,0.365665,41603.0,41596.0,0.00090747]
[1646387777845,0.365665,41602.0,41596.0,0.00090747]
[1646387778043,0.365665,41601.0,41596.0,0.00090747]
[1646387778245,0.365665,41603.0,41596.0,0.00090747]
[1646387778945,0.375,41606.0,41596.0,0.00090747]
[1646387779146,0.465665,41605.0,41596.0,0.00090747]
[1646387779346,0.23210141,41604.0,41596.0,0.00090747]
[1646387779587,0.365665,41603.0,41596.0,0.00090747]
[1646387780190,0.665665,41603.0,41596.0,0.00090747]
[1646387780390,2.37815409,41603.0,41596.0,0.00090747]
[1646387780590,0.365665,41601.0,41596.0,0.00090747]
[1646387780790,0.19994305,41602.0,41596.0,0.00090747]
[1646387780791,0.3,41600.0,41596.0,0.00090747]
[1646387780993,0.365665,41599.0,41596.0,0.00090747]
[1646387781691,0.61909141,41597.0,41596.0,0.00090747]
[1646387781890,0.91909141,41597.0,41596.0,0.00090747]
[1646387782491,1.36909141,41597.0,41596.0,0.00090747]
[1646387783356,0.7321,41595.0,41591.0,0.00310747]
[1646387783538,0.48475854,41591.0,41588.0,0.001]
[1646387783837,0.83475854,41591.0,41588.0,0.001]
[1646387784237,0.26481861,41590.0,41588.0,0.001]
[1646387784438,0.665665,41589.0,41588.0,0.001]
[1646387785443,1.4,41587.0,41579.0,0.0011]
[1646387785640,0.21499422,41585.0,41579.0,0.0011]
[1646387785941,0.665665,41585.0,41579.0,0.0011]
[1646387786338,0.665665,41585.0,41581.0,0.21937647]
[1646387786539,0.23410437,41589.0,41579.0,0.0011]
[1646387786741,0.15910437,41587.0,41579.0,0.0011]
[1646387786940,0.175,41589.0,41579.0,0.0011]
[1646387787190,0.025,41589.0,41579.0,0.0011]
[1646387787395,0.025,41589.0,41583.0,0.21208257]
[1646387787592,0.26832951,41587.0,41584.0,0.15743647]
[1646387788690,0.06150386,41585.0,41584.0,0.001]
[1646387789291,0.42716886,41585.0,41584.0,0.001]
[1646387789492,0.06150386,41585.0,41584.0,0.001]
[1646387789892,0.254,41586.0,41584.0,0.001]
[1646387789893,0.354,41586.0,41584.0,0.001]
[1646387790092,0.665665,41585.0,41583.0,0.0011]
[1646387790293,0.665665,41584.0,41583.0,0.0011]
[1646387791344,0.72640677,41584.0,41583.0,0.0011]
[1646387791742,0.72640677,41584.0,41579.0,0.0011]
[1646387791743,1.765665,41583.0,41579.0,0.0011]
[1646387791942,0.87913556,41580.0,41579.0,0.0011]
[1646387792142,1.96123556,41580.0,41579.0,0.0011]
[1646387792344,2.47240197,41580.0,41579.0,0.0011]
[1646387792542,2.63150634,41580.0,41579.0,0.0011]
[1646387793242,1.89940634,41580.0,41579.0,0.0011]
[1646387793844,0.33800311,41580.0,41579.0,0.0011]
[1646387794343,0.17889874,41580.0,41579.0,0.0011]
[1646387794604,0.02889874,41580.0,41579.0,0.0011]
[1646387794798,0.02889874,41580.0,41579.0,0.113394]
[1646387794999,0.02889874,41580.0,41579.0,0.38834582]
[1646387795198,0.02889874,41580.0,41579.0,0.27605182]
[1646387796098,0.02889874,41580.0,41579.0,0.44003537]
[1646387796299,0.02889874,41580.0,41579.0,0.27605182]
[1646387796500,0.02889874,41580.0,41579.0,0.0011]
[1646387797300,0.02889874,41580.0,41579.0,0.1856777]
[1646387797702,0.02889874,41580.0,41579.0,0.39635692]
[1646387797899,0.02889874,41580.0,41579.0,0.21177922]
[1646387798103,0.02889874,41580.0,41579.0,0.0011]
[1646387798944,0.02889874,41580.0,41579.0,0.1990224]
[1646387799145,0.02889874,41580.0,41579.0,0.47763982]
[1646387799945,0.02889874,41580.0,41579.0,0.58993382]
[1646387800145,0.02889874,41580.0,41579.0,0.47763982]
[1646387800445,0.02889874,41580.0,41579.0,0.58993382]
[1646387800647,0.02889874,41580.0,41579.0,0.47763982]
[1646387801550,0.01853708,41580.0,41579.0,0.58993382]
[1646387801746,0.01853708,41580.0,41579.0,0.89062382]
[1646387801947,0.01853708,41580.0,41579.0,0.86659382]
[1646387802493,0.01853708,41580.0,41579.0,0.82434435]
[1646387802893,0.01853708,41580.0,41579.0,0.82434346]
[1646387805194,0.05,41593.0,41591.0,0.112242]
[1646387805395,0.31687882,41585.0,41584.0,0.77992619]
[1646387805595,0.31687882,41585.0,41584.0,0.97992619]
[1646387805844,0.31687882,41585.0,41584.0,1.05364761]
[1646387806147,0.31687882,41585.0,41584.0,0.90164761]
[1646387806342,0.31687882,41585.0,41584.0,1.10164672]
[1646387807645,0.31687882,41585.0,41584.0,0.23398253]
[1646387808045,0.31687882,41585.0,41584.0,0.07372053]
[1646387808245,0.31687882,41585.0,41581.0,0.004]
[1646387808647,0.31687882,41585.0,41581.0,0.19544654]
[1646387808846,0.31687882,41585.0,41581.0,0.19144654]
[1646387809245,0.31687882,41585.0,41580.0,0.23553669]
[1646387809446,0.31687882,41585.0,41579.0,0.0011]
[1646387810493,0.31687882,41585.0,41580.0,0.24935689]
[1646387810694,0.31687882,41585.0,41579.0,0.0011]
[1646387811893,0.31687882,41585.0,41579.0,0.2539942]
[1646387812093,0.31687882,41585.0,41579.0,0.0011]
[1646387812496,0.31687882,41585.0,41580.0,0.112286]
[1646387813339,0.31687882,41585.0,41582.0,0.11228]
[1646387813542,0.31687882,41585.0,41584.0,0.55930367]
[1646387813941,0.31687882,41585.0,41584.0,0.90730367]
[1646387814641,0.31687882,41585.0,41584.0,1.04730367]
[1646387815141,0.31687882,41585.0,41584.0,0.98102331]
[1646387815743,0.31687882,41585.0,41584.0,1.13102331]
[1646387816746,0.31687882,41585.0,41584.0,0.98102331]
[1646387817996,0.31687882,41585.0,41584.0,1.18102331]
[1646387818395,0.31687882,41585.0,41584.0,1.33102331]
[1646387818594,0.31687882,41585.0,41584.0,1.35505331]
[1646387818896,0.31687882,41585.0,41584.0,1.42133367]
[1646387819094,0.31687882,41585.0,41584.0,1.355048]
[1646387819697,0.31687882,41585.0,41584.0,2.054948]
[1646387821142,0.31687882,41585.0,41584.0,2.104948]
[1646387821342,0.31687882,41585.0,41584.0,2.080918]
[1646387822346,0.31687882,41585.0,41584.0,2.104948]
[1646387822546,0.31687882,41585.0,41584.0,2.080918]
[1646387824156,0.31687882,41585.0,41584.0,2.104948]
[1646387824352,0.31687882,41585.0,41584.0,2.080918]
[1646387824791,0.31687882,41585.0,41584.0,2.17876186]
[1646387824990,0.31687882,41585.0,41584.0,1.48388733]
[1646387825192,0.31687882,41585.0,41584.0,0.98388733]
[1646387825392,0.31687882,41585.0,41584.0,0.23398733]
[1646387825594,0.31687882,41585.0,41584.0,0.07371521]
[1646387826196,0.56445874,41585.0,41581.0,0.007]
[1646387826994,0.56445874,41585.0,41579.0,0.0011]
[1646387827194,0.61445874,41585.0,41579.0,0.0011]
[1646387827795,0.79072294,41585.0,41579.0,0.0011]
[1646387827995,0.365665,41583.0,41579.0,0.0011]
[1646387828196,0.365665,41582.0,41579.0,0.0011]
[1646387828859,0.17822353,41581.0,41579.0,0.0011]
[1646387829057,0.665665,41580.0,41579.0,0.0011]
[1646387829258,0.665665,41580.0,41576.0,0.0021]
[1646387829259,1.4,41579.0,41576.0,0.0011]
[1646387829462,0.365665,41578.0,41576.0,0.0011]
[1646387829657,1.4,41579.0,41576.0,0.0011]
[1646387829858,1.4,41579.0,41574.0,0.0012]
[1646387830057,0.05431549,41576.0,41574.0,0.0012]
[1646387830258,0.27344238,41578.0,41574.0,0.0012]
[1646387831158,0.0625188,41575.0,41574.0,0.0012]
[1646387832392,0.4281838,41575.0,41574.0,0.0012]
[1646387832591,0.0625188,41575.0,41574.0,0.0012]
[1646387832793,0.3,41577.0,41574.0,0.0012]
[1646387832992,0.27344238,41578.0,41574.0,0.0012]
[1646387833994,0.3,41580.0,41574.0,0.0012]
[1646387834194,0.25250454,41581.0,41574.0,0.0012]
[1646387834395,0.17822353,41581.0,41574.0,0.0012]
[1646387835195,0.20399804,41578.0,41574.0,0.0012]
[1646387836139,0.4,41577.0,41572.0,0.0002]
[1646387836342,0.20399804,41578.0,41572.0,0.0002]
[1646387837942,0.06912259,41576.0,41572.0,0.0002]
[1646387838142,0.06912259,41576.0,41571.0,0.00167112]
[1646387838944,0.21612483,41574.0,41571.0,0.00167112]
[1646387839344,0.20399804,41578.0,41571.0,0.00167112]
[1646387840209,0.665665,41577.0,41571.0,0.00167112]